lending/lending_fUSD_20250429
["ID","MTS","AMOUNT","RATE_DAILY","PERIOD"]
[359286996,1745893585363,470.0,0.00038356,30]
[359286997,1745893585516,470.0,0.00038356,30]
[359286998,1745893585864,41879.67,0.00038356,30]
[359286999,1745893587445,496.6,0.00038356,30]
[359287000,1745893589443,470.0,0.00038356,30]
[359287001,1745893590755,470.0,0.00038356,30]
[359287002,1745893591922,556.04,0.00038356,30]
[359287003,1745893591969,470.0,0.00038356,30]
[359287004,1745893592791,470.0,0.00038356,30]
[359287005,1745893593914,470.0,0.00038356,30]
[359287006,1745893594037,470.0,0.00038356,30]
[359287007,1745893594349,544.71,0.00038356,30]
[359287008,1745893596073,500.52,0.00038356,30]
[359287009,1745893597579,262.1115146,0.00038356,30]
[359287010,1745893597751,470.0,0.00038356,30]
[359287011,1745893597989,470.0,0.00038356,30]
[359287012,1745893599117,470.0,0.00038356,30]
[359287013,1745893600223,470.0,0.00038356,30]
[359287014,1745893602425,470.0,0.00038356,30]
[359287015,1745893605651,621.99,0.00038356,30]
[359287016,1745893605865,470.0,0.00038356,30]
[359287017,1745893606332,470.0,0.00038356,30]
[359287018,1745893607671,601.23,0.00038356,30]
[359287019,1745893607889,470.0,0.00038356,30]
[359287020,1745893608061,4129.32,0.00038356,30]
[359287021,1745893608109,610.34,0.00038356,30]
[359287022,1745893609397,470.0,0.00038356,30]
[359287023,1745893610765,470.0,0.00038356,30]
[359287026,1745893612649,470.0,0.00038356,30]
[359287027,1745893613354,470.0,0.00038356,30]
[359287028,1745893613788,470.0,0.00038356,30]
[359287029,1745893614841,470.0,0.00038356,30]
[359287030,1745893616654,3352.73,0.00038356,30]
[359287031,1745893616892,470.0,0.00038356,30]
[359287032,1745893618139,470.0,0.00038356,30]
[359287033,1745893619582,602.43,0.00038356,30]
[359287034,1745893620352,415.35661463,0.00038356,30]
[359287035,1745893620589,470.0,0.00038356,30]
[359287036,1745893622185,470.0,0.00038356,30]
[359287037,1745893622276,470.0,0.00038356,30]
[359287038,1745893625080,1281.98,0.00038356,30]
[359287039,1745893625118,872.65,0.00038356,30]
[359287040,1745893625877,470.0,0.00038356,30]
[359287041,1745893626277,470.0,0.00038356,30]
[359287042,1745893626684,470.0,0.00038356,30]
[359287043,1745893627484,470.0,0.00038356,30]
[359287044,1745893630736,470.0,0.00038356,30]
[359287045,1745893633806,470.0,0.00038356,30]
[359287046,1745893634602,470.0,0.00038356,30]
[359287047,1745893634770,478.2,0.00038356,30]
[359287048,1745893635045,470.0,0.00038356,30]
[359287049,1745893635125,470.0,0.00038356,30]
[359287050,1745893635162,470.0,0.00038356,30]
[359287051,1745893635236,5386.75,0.00038356,30]
[359287052,1745893635549,470.0,0.00038356,30]
[359287053,1745893635818,250.0,0.00017,2]
[359287054,1745893636225,470.0,0.00038356,30]
[359287055,1745893636890,300.0,0.00019,2]
[359287056,1745893637125,738.07,0.00038356,30]
[359287057,1745893637455,470.0,0.00038356,30]
[359287058,1745893638156,470.0,0.00038356,30]
[359287059,1745893641588,470.0,0.00038356,30]
[359287060,1745893642555,470.0,0.00038356,30]
[359287061,1745893642824,470.0,0.00038356,30]
[359287062,1745893643073,470.0,0.00038356,30]
[359287063,1745893644091,470.0,0.00038356,30]
[359287064,1745893644471,183.32836,0.00027671,40]
[359287065,1745893644517,183.32837,0.00032671,40]
[359287066,1745893646436,470.0,0.00038356,30]
[359287067,1745893646504,470.0,0.00038356,30]
[359287068,1745893647277,470.0,0.00038356,30]
[359287069,1745893648765,542.01302093,0.00038356,30]
[359287070,1745893648851,470.0,0.00038356,30]
[359287071,1745893650385,470.0,0.00038356,30]
[359287072,1745893650423,470.0,0.00038356,30]
[359287073,1745893650706,470.0,0.00038356,30]
[359287074,1745893651560,470.0,0.00038356,30]
[359287075,1745893652439,470.0,0.00038356,30]
[359287076,1745893652716,470.0,0.00038356,30]
[359287077,1745893653942,470.0,0.00038356,30]
[359287078,1745893654108,470.0,0.00038356,30]
[359287079,1745893657534,470.0,0.00038356,30]
[359287080,1745893657663,470.0,0.00038356,30]
[359287081,1745893657700,605.66784309,0.00038356,30]
[359287082,1745893657934,470.0,0.00038356,30]
[359287083,1745893659579,470.0,0.00038356,30]
[359287084,1745893659968,1704.05,0.00038356,30]
[359287085,1745893660736,470.0,0.00038356,30]
[359287086,1745893660929,470.0,0.00038356,30]
[359287087,1745893662816,470.0,0.00038356,30]
[359287088,1745893664329,470.0,0.00038356,30]
[359287089,1745893668229,470.0,0.00038356,30]
[359287090,1745893668629,-285.3,0.0001961,2]
[359287091,1745893669062,470.0,0.00038356,30]
[359287092,1745893670044,634.31,0.00038356,30]
[359287093,1745893671441,470.0,0.00038356,30]
[359287094,1745893671727,470.0,0.00038356,30]
[359287095,1745893671851,470.0,0.00038356,30]
[359287096,1745893674069,470.0,0.00038356,30]
[359287097,1745893675404,470.0,0.00038356,30]
[359287098,1745893677927,470.0,0.00038356,30]
[359287099,1745893678595,965.39,0.00038356,30]
[359287100,1745893679188,470.0,0.00038356,30]
[359287101,1745893680210,470.0,0.00038356,30]
[359287102,1745893680326,470.0,0.00038356,30]
[359287103,1745893680975,470.0,0.00038356,30]
[359287104,1745893681977,470.0,0.00038356,30]
[359287105,1745893682583,470.0,0.00038356,30]
[359287106,1745893684871,470.0,0.00038356,30]
[359287107,1745893685120,470.0,0.00038356,30]
[359287108,1745893685747,2680.56,0.00038356,30]
[359287109,1745893686932,470.0,0.00038356,30]
[359287110,1745893691158,470.0,0.00038356,30]
[359287111,1745893691220,470.0,0.00038356,30]
[359287112,1745893692164,470.0,0.00038356,30]
[359287113,1745893692425,470.0,0.00038356,30]
[359287114,1745893694718,470.0,0.00038356,30]
[359287115,1745893695067,470.0,0.00038356,30]
[359287116,1745893695634,470.0,0.00038356,30]
[359287117,1745893699435,470.0,0.00038356,30]
[359287118,1745893699479,470.0,0.00038356,30]
[359287119,1745893700008,470.0,0.00038356,30]
[359287120,1745893700533,470.0,0.00038356,30]
[359287121,1745893700573,600.0,0.00038356,30]
[359287122,1745893701944,3433.04,0.00038356,30]
[359287123,1745893702077,470.0,0.00038356,30]
[359287124,1745893703142,470.0,0.00038356,30]
[359287138,1745893703861,618.76,0.00038356,30]
[359287139,1745893704270,470.0,0.00038356,30]
[359287140,1745893704552,470.0,0.00038356,30]
[359287141,1745893705731,470.0,0.00038356,30]
[359287142,1745893706122,470.0,0.00038356,30]
[359287143,1745893706354,470.0,0.00038356,30]
[359287144,1745893706909,470.0,0.00038356,30]
[359287145,1745893709439,470.0,0.00038356,30]
[359287146,1745893709652,545.56,0.00038356,30]
[359287147,1745893709708,827.55,0.00038356,30]
[359287148,1745893710145,470.0,0.00038356,30]
[359287149,1745893710350,470.0,0.00038356,30]
[359287150,1745893712310,470.0,0.00038356,30]
[359287151,1745893713556,591.53,0.00038356,30]
[359287152,1745893713895,470.0,0.00038356,30]
[359287153,1745893714235,805.7,0.00038356,30]
[359287154,1745893715140,470.0,0.00038356,30]
[359287155,1745893717005,4275.86706331,0.000149,2]
[359287156,1745893717262,488.32,0.00038356,30]
[359287157,1745893717421,1621.12,0.00038356,30]
[359287158,1745893717948,470.0,0.00038356,30]
[359287159,1745893718477,515.22964944,0.00038356,60]
[359287160,1745893719024,2643.67233477,0.0001,2]
[359287161,1745893719160,637.58,0.00038356,30]
[359287162,1745893720144,738.31,0.00038356,30]
[359287163,1745893721441,470.0,0.00038356,30]
[359287164,1745893721768,582.12,0.00038356,30]
[359287165,1745893725081,581.81,0.00038356,30]
[359287166,1745893725588,470.0,0.00038356,30]
[359287167,1745893725999,1364.69647951,0.00010136,2]
[359287168,1745893726417,13967.9627192,0.00013368,2]
[359287169,1745893726459,470.0,0.00038356,30]
[359287170,1745893727194,470.0,0.00038356,30]
[359287171,1745893727297,1040.04,0.00038356,30]
[359287172,1745893727653,470.0,0.00038356,30]
[359287173,1745893727899,1921.47,0.00038356,30]
[359287174,1745893728728,470.0,0.00038356,30]
[359287175,1745893728883,608.22183357,0.00038356,30]
[359287176,1745893729564,470.0,0.00038356,30]
[359287177,1745893730865,470.0,0.00038356,30]
[359287178,1745893734092,470.0,0.00038356,30]
[359287179,1745893735498,714.22,0.00038356,30]
[359287180,1745893736290,1590.29,0.00038356,30]
[359287181,1745893736450,922.71,0.00038356,30]
[359287182,1745893737874,571.75,0.00038356,30]
[359287183,1745893737969,470.0,0.00038356,30]
[359287184,1745893738207,470.0,0.00038356,30]
[359287185,1745893739777,586.86,0.00038356,30]
[359287186,1745893740948,470.0,0.00038356,30]
[359287187,1745893741441,470.0,0.00038356,30]
[359287188,1745893741665,470.0,0.00038356,30]
[359287189,1745893743055,470.0,0.00038356,30]
[359287190,1745893743787,470.0,0.00038356,30]
[359287191,1745893744905,470.0,0.00038356,30]
[359287192,1745893744999,852.57,0.00038356,30]
[359287193,1745893745759,470.0,0.00038356,30]
[359287194,1745893746764,535.43,0.00038356,30]
[359287195,1745893746890,470.0,0.00038356,30]
[359287196,1745893748333,479.74559379,0.00038356,30]
[359287197,1745893749351,470.0,0.00038356,30]
[359287198,1745893749545,470.0,0.00038356,30]
[359287199,1745893750891,525.89,0.00038356,30]
[359287200,1745893754850,509.72,0.00038356,30]
[359287201,1745893755479,516.42,0.00038356,30]
[359287202,1745893755969,470.0,0.00038356,30]
[359287203,1745893756047,470.0,0.00038356,30]
[359287204,1745893756329,470.0,0.00038356,30]
[359287205,1745893758982,470.0,0.00038356,30]
[359287206,1745893759030,2481.27,0.00038356,30]
[359287207,1745893760086,614.57,0.00038356,30]
[359287208,1745893761790,470.0,0.00038356,30]
[359287209,1745893763136,470.0,0.00038356,30]
[359287210,1745893763266,798.3,0.00038356,30]
[359287211,1745893763584,470.0,0.00038356,30]
[359287212,1745893763932,470.0,0.00038356,30]
[359287213,1745893765313,884.97,0.00038356,30]
[359287214,1745893766895,470.0,0.00038356,30]
[359287215,1745893767065,470.0,0.00038356,30]
[359287216,1745893767367,470.0,0.00038356,30]
[359287217,1745893767617,583.16,0.00038356,30]
[359287218,1745893768747,470.0,0.00038356,30]
[359287219,1745893771039,470.0,0.00038356,30]
[359287220,1745893771491,470.0,0.00038356,30]
[359287221,1745893771542,470.0,0.00038356,30]
[359287222,1745893774540,477.69,0.00038356,30]
[359287223,1745893774701,470.0,0.00038356,30]
[359287224,1745893775087,1500.41,0.00038356,30]
[359287225,1745893775550,470.0,0.00038356,30]
[359287226,1745893775602,470.0,0.00038356,30]
[359287227,1745893775643,365.5291929,0.00038356,30]
[359287228,1745893775681,787.96,0.00038356,30]
[359287229,1745893775732,470.0,0.00038356,30]
[359287230,1745893776934,470.0,0.00038356,30]
[359287231,1745893777473,470.0,0.00038356,30]
[359287232,1745893780430,366.6843999,0.00038356,30]
[359287233,1745893782329,470.0,0.00038356,30]
[359287234,1745893782369,538.26,0.00038356,30]
[359287235,1745893782656,470.0,0.00038356,30]
[359287236,1745893782793,310.5030047,0.00038356,30]
[359287237,1745893783009,470.0,0.00038356,30]
[359287238,1745893783095,917.61,0.00038356,30]
[359287239,1745893783466,470.0,0.00038356,30]
[359287240,1745893783777,394.49321527,0.00038356,30]
[359287241,1745893783883,470.0,0.00038356,30]
[359287242,1745893784634,470.0,0.00038356,30]
[359287243,1745893788005,470.0,0.00038356,30]
[359287244,1745893789722,470.0,0.00038356,30]
[359287245,1745893789817,470.0,0.00038356,30]
[359287246,1745893790173,470.0,0.00038356,30]
[359287247,1745893790757,524.7481183,0.00038356,30]
[359287248,1745893790819,706.8,0.00038356,30]
[359287249,1745893791135,470.0,0.00038356,30]
[359287250,1745893791698,470.0,0.00038356,30]
[359287251,1745893792784,567.74,0.00038356,30]
[359287252,1745893794777,470.0,0.00038356,30]
[359287253,1745893794812,470.0,0.00038356,30]
[359287254,1745893795422,470.0,0.00038356,30]
[359287255,1745893795984,470.0,0.00038356,30]
[359287256,1745893796633,470.0,0.00038356,30]
[359287257,1745893801377,470.0,0.00038356,30]
[359287258,1745893801452,470.0,0.00038356,30]
[359287259,1745893801505,470.0,0.00038356,30]
[359287260,1745893803355,472.94664106,0.00038356,30]
[359287261,1745893804909,522.01,0.00038356,30]
[359287262,1745893805262,470.0,0.00038356,30]
[359287263,1745893805424,470.0,0.00038356,30]
[359287264,1745893805523,1291.86,0.00038356,30]
[359287265,1745893806949,470.0,0.00038356,30]
[359287266,1745893807205,470.0,0.00038356,30]
[359287267,1745893807593,470.0,0.00038356,30]
[359287268,1745893807683,745.23,0.00038356,30]
[359287269,1745893808021,183.36013366,0.00038356,30]
[359287270,1745893808093,470.0,0.00038356,30]
[359287271,1745893810369,470.0,0.00038356,30]
[359287272,1745893812215,470.0,0.00038356,30]
[359287273,1745893813188,470.0,0.00038356,30]
[359287274,1745893813343,470.0,0.00038356,30]
[359287275,1745893813859,470.0,0.00038356,30]
[359287276,1745893815002,470.0,0.00038356,30]
[359287277,1745893815762,470.0,0.00038356,30]
[359287278,1745893815969,1030.37,0.00038356,30]
[359287279,1745893816008,645.61,0.00038356,30]
[359287280,1745893816567,470.0,0.00038356,30]
[359287281,1745893818231,470.0,0.00038356,30]
[359287282,1745893818379,470.0,0.00038356,30]
[359287283,1745893818422,470.0,0.00038356,30]
[359287284,1745893818826,470.0,0.00038356,30]
[359287285,1745893819718,470.0,0.00038356,30]
[359287286,1745893819839,470.0,0.00038356,30]
[359287287,1745893820279,470.0,0.00038356,30]
[359287288,1745893820702,470.0,0.00038356,30]
[359287289,1745893820764,470.0,0.00038356,30]
[359287290,1745893821204,532.36,0.00038356,30]
[359287291,1745893821439,12554.6,0.00038356,30]
[359287292,1745893823240,470.0,0.00038356,30]
[359287293,1745893823581,470.0,0.00038356,30]
[359287294,1745893823974,470.0,0.00038356,30]
[359287295,1745893824624,470.0,0.00038356,30]
[359287296,1745893824661,470.0,0.00038356,30]
[359287297,1745893824994,40134.69,0.00038356,30]
[359287298,1745893827494,505.34,0.00038356,30]
[359287299,1745893830376,388.54451128,0.00038356,30]
[359287300,1745893830532,470.0,0.00038356,30]
[359287301,1745893830830,532.87,0.00038356,30]
[359287303,1745893831582,-1031.32789842,0.0001961,2]
[359287304,1745893831591,-319.21299932,0.000199,2]
[359287305,1745893831601,-1200.0,0.00019999,2]
[359287306,1745893831610,-13242.89479514,0.0002,4]
[359287307,1745893831620,-350.0,0.00021,2]
[359287308,1745893831629,-1680.0,0.00021881,2]
[359287309,1745893831639,-400.0,0.00023,2]
[359287310,1745893831648,-4608.22380709,0.000233,4]
[359287311,1745893831658,-4608.22380699,0.000233,4]
[359287312,1745893831667,-4608.22380699,0.000233,4]
[359287313,1745893831677,-4608.22380699,0.00023486,4]
[359287314,1745893831686,-2351.0,0.00023941,2]
[359287315,1745893831696,-5969.00166255,0.00024,2]
[359287316,1745893831706,-79.42,0.00024162,2]
[359287317,1745893831716,-4608.22380699,0.00024348,5]
[359287318,1745893831726,-450.0,0.00025,2]
[359287319,1745893831735,-152.30225198,0.00025,7]
[359287320,1745893831745,-4608.22380699,0.0002521,5]
[359287321,1745893831755,-944.0,0.00025533,2]
[359287322,1745893831765,-4608.22380699,0.00026072,6]
[359287323,1745893831775,-2920.0,0.00026194,2]
[359287324,1745893831785,-195.23,0.0002673,2]
[359287325,1745893831795,-724.33984338,0.00026753,3]
[359287326,1745893831805,-150.0,0.00026778,2]
[359287327,1745893831815,-1000.0,0.00026824,2]
[359287328,1745893831825,-444.67,0.00026853,2]
[359287329,1745893831835,-210.63,0.00026873,2]
[359287330,1745893831845,-450.92,0.00026878,2]
[359287331,1745893831855,-300.53,0.00026878,2]
[359287332,1745893831864,-2304.64,0.00026878,2]
[359287333,1745893831874,-162.0,0.00026878,2]
[359287334,1745893831884,-300.0,0.00026878,2]
[359287335,1745893831894,-357.98,0.0002688,2]
[359287336,1745893831903,-250.0,0.00026888,7]
[359287337,1745893831913,-1714.46,0.00026888,2]
[359287338,1745893831923,-200.0,0.00026894,2]
[359287339,1745893831933,-150.0,0.00026907,2]
[359287340,1745893831943,-4608.22380699,0.00026934,7]
[359287341,1745893831953,-500.0,0.00027,2]
[359287342,1745893831962,-611.123,0.00027297,2]
[359287343,1745893831972,-300.0,0.000273,2]
[359287346,1745893831982,-703.18,0.000273,2]
[359287348,1745893831992,-300.0,0.00027397,2]
[359287350,1745893832002,-150.0,0.00027397,2]
[359287352,1745893832012,-824.64,0.00027397,2]
[359287354,1745893832021,-683.98,0.00027397,2]
[359287356,1745893832031,-450.92,0.00027397,2]
[359287358,1745893832040,-1152.32,0.00027397,2]
[359287360,1745893832050,-300.0,0.00027397,2]
[359287362,1745893832059,-162.05,0.00027397,2]
[359287364,1745893832068,-451.08,0.000274,2]
[359287365,1745893832078,-162.05,0.000274,2]
[359287366,1745893832088,-513.32,0.000274,2]
[359287369,1745893832098,-162.05,0.000274,2]
[359287372,1745893832107,-185.08490026,0.00027418,2]
[359287375,1745893832120,-250.0,0.00027451,2]
[359287379,1745893832135,-150.0,0.000275,2]
[359287383,1745893832145,-162.05,0.000275,2]
[359287385,1745893832155,-451.08,0.000275,2]
[359287387,1745893832164,-154.91898607,0.00027571,2]
[359287388,1745893832174,-150.0,0.000276,2]
[359287389,1745893832184,-162.05,0.000276,2]
[359287390,1745893832194,-451.08,0.000276,2]
[359287391,1745893832203,-150.0,0.000276,2]
[359287392,1745893832213,-703.18,0.000276,2]
[359287393,1745893832223,-724.33984339,0.000276,3]
[359287394,1745893832232,-4608.22380699,0.00027797,7]
[359287395,1745893832242,-944.0,0.00027797,2]
[359287396,1745893832252,-202.11018174,0.00027812,2]
[359287397,1745893832263,-166.51,0.00027814,2]
[359287398,1745893832273,-158.0,0.00027838,2]
[359287399,1745893832283,-500.0,0.00027845,2]
[359287400,1745893832292,-500.0,0.00027872,2]
[359287401,1745893832302,-500.0,0.000279,2]
[359287402,1745893832311,-150.0,0.000279,2]
[359287403,1745893832321,-150.0,0.000279,2]
[359287404,1745893832330,-485.47249947,0.00027924,2]
[359287405,1745893832340,-500.0,0.00027927,2]
[359287406,1745893832350,-150.0,0.00027927,2]
[359287407,1745893832359,-150.0,0.00027927,2]
[359287408,1745893832369,-1754.75952735,0.00027934,2]
[359287409,1745893832394,-1613.14501938,0.00027934,2]
[359287410,1745893832406,-2105.15450389,0.00027934,2]
[359287411,1745893832417,-2190.57097038,0.00027934,2]
[359287412,1745893832433,-52853.54584351,0.00027934,2]
[359287413,1745893832479,571.47,0.00038356,30]
[359287414,1745893832499,-2046.55057394,0.00027934,2]
[359287415,1745893832512,-814.03251576,0.00027934,2]
[359287416,1745893832548,470.0,0.00038356,30]
[359287417,1745893833655,470.0,0.00038356,30]
[359287418,1745893834336,188.7517813,0.00038356,30]
[359287419,1745893834768,215.92371476,0.00038356,30]
[359287420,1745893835046,626.28,0.00038356,30]
[359287421,1745893835944,470.0,0.00038356,30]
[359287422,1745893836686,470.0,0.00038356,30]
[359287432,1745893837635,-319.2129993,0.00022667,2]
[359287433,1745893837645,-548.8170007,0.00027934,2]
[359287434,1745893837691,-1600.94212731,0.00027934,2]
[359287435,1745893837747,-10717.1967173,0.00027934,2]
[359287436,1745893837802,-6602.31206891,0.00027934,2]
[359287437,1745893837812,-500.0,0.00027955,2]
[359287438,1745893837821,-200.0,0.00027955,2]
[359287439,1745893837830,-145.97954827,0.00027955,2]
[359287440,1745893837910,-4.02045173,0.00027955,2]
[359287441,1745893837919,-500.0,0.00027982,2]
[359287442,1745893837929,-150.0,0.00027982,2]
[359287443,1745893837938,-5381.47180334,0.00028005,2]
[359287444,1745893837947,-94.38774493,0.00028009,2]
[359287445,1745893837960,-405.61225507,0.00028009,2]
[359287446,1745893837969,-150.0,0.0002801,2]
[359287447,1745893837979,-199.3332917,0.00028037,2]
[359287454,1745893838082,729.8,0.00038356,30]
[359287528,1745893839863,-300.6667083,0.00028037,2]
[359287529,1745893839872,-250.0,0.00028037,2]
[359287530,1745893839881,-500.0,0.00028064,2]
[359287531,1745893839891,-61.0832917,0.00028092,2]
[359287532,1745893839916,-438.9167083,0.00028092,2]
[359287533,1745893839926,-150.0,0.00028118,2]
[359287534,1745893839935,-137.40014486,0.00028119,2]
[359287535,1745893839946,-362.59985514,0.00028119,2]
[359287536,1745893839955,-500.0,0.00028146,2]
[359287537,1745893839965,-1027.53929793,0.00028147,2]
[359287538,1745893839974,-500.0,0.00028174,2]
[359287539,1745893839983,-500.0,0.00028201,2]
[359287540,1745893839992,-300.0,0.00028223,2]
[359287541,1745893840002,-500.0,0.00028229,2]
[359287542,1745893840011,-509.16833191,0.00028256,2]
[359287543,1745893840020,-312.36059649,0.000284,3]
[359287544,1745893840029,-500.0,0.000284,2]
[359287545,1745893840039,-263.72742532,0.000286,5]
[359287546,1745893840048,-501.57825406,0.000286,5]
[359287547,1745893840058,-4608.22380699,0.00028659,8]
[359287548,1745893840067,-683.98,0.00028767,2]
[359287549,1745893840076,-150.0,0.00028839,2]
[359287550,1745893840085,-2644.40323093,0.000289,2]
[359287551,1745893840094,-158.0,0.00028941,2]
[359287552,1745893840103,-500.0,0.00028973,5]
[359287553,1745893840113,-503.43068466,0.00028973,5]
[359287554,1745893840122,-500.0,0.00028973,5]
[359287555,1745893840131,-377.29102283,0.00028999,5]
[359287556,1745893840144,-75086.97641804,0.00029,2]
[359287557,1745893840153,-550.0,0.00029,2]
[359287558,1745893840164,-54887.54087218,0.00029,2]
[359287559,1745893840173,-386.64524373,0.00029,6]
[359287560,1745893840183,-260.22518954,0.00029,2]
[359287561,1745893840192,-2965.41,0.00029009,2]
[359287562,1745893840201,-268.81,0.0002903,2]
[359287563,1745893840211,-151.0,0.00029039,2]
[359287564,1745893840220,-735.84,0.00029041,2]
[359287565,1745893840229,-512.93,0.00029041,2]
[359287566,1745893840238,-502.03501852,0.00029073,5]
[359287567,1745893840248,-590.7706749,0.00029073,5]
[359287568,1745893840259,-3648.0,0.00029175,2]
[359287569,1745893840269,-154.774725,0.00029305,7]
[359287570,1745893840278,-152.732161,0.00029305,7]
[359287571,1745893840287,-153.399017,0.00029305,7]
[359287572,1745893840297,-735.84,0.00029315,2]
[359287573,1745893840307,-512.93,0.00029315,2]
[359287574,1745893840316,-4608.22380699,0.00029521,8]
[359287575,1745893840326,-150.0,0.0002956,2]
[359287576,1745893840336,-250.0,0.00029584,2]
[359287577,1745893840346,-735.84,0.00029589,2]
[359287578,1745893840356,-512.93,0.00029589,2]
[359287579,1745893840366,-300.0,0.00029593,2]
[359287580,1745893840375,-735.84,0.00029863,2]
[359287581,1745893840385,-512.93,0.00029863,2]
[359287582,1745893840398,-75808.17179594,0.000299,2]
[359287583,1745893840408,-1355.98391546,0.0003,4]
[359287585,1745893840417,-213.0,0.0003,2]
[359287587,1745893840430,-2644.40323084,0.0003,2]
[359287589,1745893840440,-158.0,0.00030044,2]
[359287591,1745893840449,-944.0,0.00030061,2]
[359287592,1745893840459,-1558.61,0.0003011,2]
[359287594,1745893840469,-28049.40354885,0.0003013,2]
[359287596,1745893840479,-735.84,0.00030136,2]
[359287598,1745893840488,-512.93,0.00030136,2]
[359287600,1745893840497,-683.98,0.00030137,2]
[359287601,1745893840507,-1000.0,0.00030177,2]
[359287603,1745893840516,-150.0,0.00030281,2]
[359287605,1745893840525,-154.91898603,0.00030369,2]
[359287606,1745893840535,-4608.22380699,0.00030383,9]
[359287607,1745893840544,-268.81,0.000304,2]
[359287608,1745893840553,-735.84,0.0003041,2]
[359287627,1745893840759,-512.93,0.0003041,2]
[359287629,1745893840768,-735.84,0.00030684,2]
[359287630,1745893840778,-512.93,0.00030684,2]
[359287632,1745893840787,-735.84,0.00030958,2]
[359287634,1745893840796,-512.93,0.00030958,2]
[359287636,1745893840806,-150.0,0.00031002,2]
[359287638,1745893840815,-178.25,0.00031011,2]
[359287640,1745893840825,-2644.40323084,0.00031101,2]
[359287641,1745893840834,-158.0,0.00031147,2]
[359287643,1745893840843,-735.84,0.00031232,2]
[359287645,1745893840853,-512.93,0.00031232,2]
[359287647,1745893840863,-4608.22380699,0.00031245,9]
[359287649,1745893840872,-735.84,0.00031506,2]
[359287651,1745893840881,-512.93,0.00031506,2]
[359287653,1745893840892,-683.98,0.00031507,2]
[359287655,1745893840901,-362.504772,0.00031623,15]
[359287656,1745893840910,-150.0,0.00031723,2]
[359287658,1745893840920,-268.81,0.0003177,2]
[359287660,1745893840929,-735.84,0.0003178,2]
[359287662,1745893840938,-512.93,0.0003178,2]
[359287664,1745893840947,-32195.2080316,0.00031983,2]
[359287666,1745893840956,-176.38,0.0003203,2]
[359287668,1745893840965,-735.84,0.00032054,2]
[359287669,1745893840974,-512.93,0.00032054,2]
[359287671,1745893840983,-4608.22380699,0.00032107,10]
[359287673,1745893840992,-2644.40323084,0.00032201,2]